[Event "EYCC Open U14 2021"]
[Site "Tornelo"]
[Date "2021.10.15"]
[Round "9.4"]
[White "Macias Pino, Diego"]
[Black "Khubukshanov, Erdem"]
[Result "0-1"]
[ECO "B11"]
[WhiteElo "2365"]
[BlackElo "2373"]
[Annotator "ChessBase"]
[PlyCount "74"]
[EventDate "2021.10.15"]
[EventType "swiss"]
[EventCountry "NET"]
[SourceTitle "playchess.com"]
[Source "ChessBase"]
[SourceQuality "1"]
[TimeControl "5400+30"]

1. e4 {[%emt 0:00:30]} c6 {[%emt 0:00:33]} 2. Nc3 {[%emt 0:00:09]} d5 {[%emt 0:00:03]} 3. Nf3 {[%emt 0:00:09]} dxe4 {[%emt 0:00:02]} 4. Nxe4 {[%emt 0:00:07]} Nf6 {[%emt 0:00:03]} 5. Qe2 {[%emt 0:00:05]} Nxe4 {[%emt 0:00:04]} 6. Qxe4 {[%emt 0:00:03]} Nd7 {[%emt 0:00:03]} 7. Bc4 {[%emt 0:00:08]} Nf6 {[%emt 0:00:03]} 8. Ne5 {[%emt 0:00:06]} e6 {[%emt 0:00:03]} 9. Qe2 {[%emt 0:00:12]} b5 {[%emt 0:00:03]} 10. Bd3 {[%emt 0:01:05]} Bb7 {[%emt 0:00:06]} 11. a4 {[%emt 0:02:25]} a6 {[%emt 0:09:48]} 12. b3 {[%emt 0:01:53]} Bc5 {[%emt 0:18:27]} 13. c3 {[%emt 0:22:30]} Qd5 {[%emt 0:02:30]} 14. O-O {[%emt 0:02:02]} Qxb3 {[%emt 0:00:31]} 15. axb5 {[%emt 0:01:29]} cxb5 {[%emt 0:00:55]} 16. c4 {[%emt 0:01:56]} b4 {[%emt 0:02:15]} 17. Ba3 {[%emt 0:02:42]} bxa3 {[%emt 0:01:13]} 18. Rfb1 {[%emt 0:00:10]} Qa4 {[%emt 0:00:05]} 19. Rxb7 {[%emt 0:00:06]} O-O {[%emt 0:00:03]} 20. Nf3 {[%emt 0:01:52]} Rab8 {[%emt 0:01:45]} 21. Rxb8 {[%emt 0:03:46]} Rxb8 {[%emt 0:00:05]} 22. h3 {[%emt 0:00:09]} Rd8 {[%emt 0:08:38]} 23. Be4 {[%emt 0:09:18]} a5 {[%emt 0:06:53]} 24. Bb1 {[%emt 0:02:38]} Qb3 {[%emt 0:03:00]} 25. d3 {[%emt 0:00:30]} Qc3 {[%emt 0:06:30]} 26. Ra2 {[%emt 0:01:00]} Rb8 {[%emt 0:00:08]} 27. Qc2 {[%emt 0:00:06]} Qb4 {[%emt 0:00:08]} 28. Ra1 {[%emt 0:00:19]} g6 {[%emt 0:03:32]} 29. Kf1 {[%emt 0:02:44]} Qb2 {[%emt 0:02:13]} 30. Qxb2 {[%emt 0:00:08]} Rxb2 {[%emt 0:00:02]} 31. d4 {[%emt 0:00:06]} Bb4 {[%emt 0:00:03]} 32. c5 {[%emt 0:02:18]} Kf8 {[%emt 0:08:09]} 33. Ne5 {[%emt 0:00:22]} Bc3 {[%emt 0:03:47]} 34. c6 {[%emt 0:01:48]} Ne8 {[%emt 0:01:36]} 35. Bd3 {[%emt 0:02:42]} a2 {[%emt 0:00:54]} 36. Nc4 {[%emt 0:00:50]} Rxf2+ {[%emt 0:00:04]} 37. Kxf2 {[%emt 0:00:41]} Bxa1 {[%emt 0:00:02]} 0-1

[Event "EYCC Open U14 2021"]
[Site "Tornelo"]
[Date "2021.10.15"]
[Round "9.5"]
[White "Vergara Anton, Diego"]
[Black "Uritsky, Yonathan"]
[Result "1/2-1/2"]
[ECO "A49"]
[WhiteElo "2258"]
[BlackElo "2081"]
[Annotator "ChessBase"]
[PlyCount "179"]
[EventDate "2021.10.15"]
[EventType "swiss"]
[EventCountry "NET"]
[SourceTitle "playchess.com"]
[Source "ChessBase"]
[SourceQuality "1"]
[TimeControl "5400+30"]

1. d4 {[%emt 0:00:30]} Nf6 {[%emt 0:00:39]} 2. Nf3 {[%emt 0:00:07]} g6 {[%emt 0:00:03]} 3. g3 {[%emt 0:00:06]} Bg7 {[%emt 0:00:03]} 4. Bg2 {[%emt 0:00:10]} O-O {[%emt 0:00:04]} 5. O-O {[%emt 0:00:08]} c5 {[%emt 0:00:08]} 6. dxc5 {[%emt 0:01:29]} Na6 {[%emt 0:00:08]} 7. Be3 {[%emt 0:01:11]} Qc7 {[%emt 0:04:30]} 8. Nc3 {[%emt 0:05:27]} Nxc5 {[%emt 0:01:08]} 9. Nb5 {[%emt 0:07:06]} Qb6 {[%emt 0:01:48]} 10. a4 {[%emt 0:01:15]} Ng4 {[%emt 0:09:05]} 11. Bd4 {[%emt 0:02:30]} Bxd4 {[%emt 0:08:05]} 12. Qxd4 {[%emt 0:00:11]} d6 {[%emt 0:00:06]} 13. Rfd1 {[%emt 0:07:38]} Bd7 {[%emt 0:03:22]} 14. Nc3 {[%emt 0:07:32]} Nf6 {[%emt 0:01:01]} 15. a5 {[%emt 0:09:15]} Qc7 {[%emt 0:00:15]} 16. Nd5 {[%emt 0:06:23]} Nxd5 {[%emt 0:00:20]} 17. Qxd5 {[%emt 0:00:06]} Rac8 {[%emt 0:03:38]} 18. Qg5 {[%emt 0:06:09]} Bc6 {[%emt 0:04:19]} 19. Qh6 {[%emt 0:01:08]} Ne6 {[%emt 0:05:03]} 20. c3 {[%emt 0:01:28]} b6 {[%emt 0:06:54]} 21. h4 {[%emt 0:04:26]} Be4 {[%emt 0:05:55]} 22. h5 {[%emt 0:04:53]} Qc5 {[%emt 0:02:24]} 23. hxg6 {[%emt 0:02:46]} fxg6 {[%emt 0:00:37]} 24. Bh3 {[%emt 0:02:39]} Bf5 {[%emt 0:00:45]} 25. Bxf5 {[%emt 0:00:31]} Rxf5 {[%emt 0:00:03]} 26. Qh4 {[%emt 0:02:33]} Rf6 {[%emt 0:05:28]} 27. axb6 {[%emt 0:01:15]} Qxb6 {[%emt 0:00:37]} 28. Rd2 {[%emt 0:03:29]} Rcf8 {[%emt 0:01:15]} 29. Qc4 {[%emt 0:01:16]} Kh8 {[%emt 0:02:14]} 30. Qa6 {[%emt 0:01:15]} Ng5 {[%emt 0:03:05]} 31. Qxb6 {[%emt 0:00:58]} Nxf3+ {[%emt 0:00:09]} 32. exf3 {[%emt 0:00:07]} axb6 {[%emt 0:00:07]} 33. f4 {[%emt 0:00:05]} Rc8 {[%emt 0:02:12]} 34. Ra7 {[%emt 0:00:29]} Re6 {[%emt 0:00:04]} 35. Rb7 {[%emt 0:00:46]} Rc6 {[%emt 0:00:08]} 36. Rd5 {[%emt 0:00:55]} Rc5 {[%emt 0:00:05]} 37. Rd4 {[%emt 0:00:45]} Rc6 {[%emt 0:00:34]} 38. Rb4 {[%emt 0:04:27]} d5 {[%emt 0:00:04]} 39. Rd4 {[%emt 0:00:23]} Rcd6 {[%emt 0:00:23]} 40. Ra7 {[%emt 0:00:53]} Kg7 {[%emt 0:00:57]} 41. Kf1 {[%emt 0:00:21]} Kf6 {[%emt 0:00:20]} 42. Ra1 {[%emt 0:00:16]} Rd7 {[%emt 0:00:47]} 43. Rad1 {[%emt 0:01:08]} Red6 {[%emt 0:00:05]} 44. Re1 {[%emt 0:00:20]} Re6 {[%emt 0:01:32]} 45. Rxe6+ {[%emt 0:00:29]} Kxe6 {[%emt 0:00:08]} 46. Rb4 {[%emt 0:00:23]} Rd6 {[%emt 0:00:20]} 47. Ke2 {[%emt 0:00:19]} Kf5 {[%emt 0:00:26]} 48. Ke3 {[%emt 0:00:49]} Kg4 {[%emt 0:00:41]} 49. Kd4 {[%emt 0:01:41]} Kf3 {[%emt 0:00:33]} 50. Ke5 {[%emt 0:00:44]} h5 {[%emt 0:01:04]} 51. f5 {[%emt 0:02:00]} g5 {[%emt 0:00:54]} 52. Ra4 {[%emt 0:00:20]} Rd7 {[%emt 0:02:39]} 53. Ke6 {[%emt 0:01:05]} Rc7 {[%emt 0:00:50]} 54. Kf7 {[%emt 0:01:01]} Kxf2 {[%emt 0:04:11]} 55. Kg6 {[%emt 0:00:08]} Kxg3 {[%emt 0:07:33]} 56. Kxh5 {[%emt 0:00:46]} Rc4 {[%emt 0:03:39]} 57. Rxc4 {[%emt 0:01:35]} dxc4 {[%emt 0:00:19]} 58. Kxg5 {[%emt 0:00:06]} Kf3 {[%emt 0:01:35]} 59. Kg6 {[%emt 0:00:22]} Ke4 {[%emt 0:00:14]} 60. Kf7 {[%emt 0:00:06]} Kxf5 {[%emt 0:00:09]} 61. Kxe7 {[%emt 0:00:09]} Ke5 {[%emt 0:00:54]} 62. Kd7 {[%emt 0:00:18]} Kd5 {[%emt 0:00:18]} 63. Kc7 {[%emt 0:00:24]} Kc5 {[%emt 0:00:08]} 64. Kb7 {[%emt 0:00:34]} Kb5 {[%emt 0:00:28]} 65. Kc7 {[%emt 0:00:08]} Ka5 {[%emt 0:00:26]} 66. Kc6 {[%emt 0:00:27]} b5 {[%emt 0:00:18]} 67. Kc5 {[%emt 0:00:11]} Ka6 {[%emt 0:00:22]} 68. Kc6 {[%emt 0:00:45]} Ka5 {[%emt 0:00:15]} 69. Kb7 {[%emt 0:00:43]} b4 {[%emt 0:00:24]} 70. Kc6 {[%emt 0:00:17]} bxc3 {[%emt 0:00:07]} 71. bxc3 {[%emt 0:00:05]} Ka6 {[%emt 0:00:06]} 72. Kc5 {[%emt 0:00:41]} Kb7 {[%emt 0:00:04]} 73. Kb5 {[%emt 0:00:10]} Kc7 {[%emt 0:00:05]} 74. Kxc4 {[%emt 0:00:06]} Kc6 {[%emt 0:00:03]} 75. Kd4 {[%emt 0:00:06]} Kd6 {[%emt 0:00:03]} 76. c4 {[%emt 0:00:05]} Kc6 {[%emt 0:00:04]} 77. c5 {[%emt 0:00:05]} Kc7 {[%emt 0:00:04]} 78. Kd5 {[%emt 0:00:05]} Kd7 {[%emt 0:00:04]} 79. Kc4 {[%emt 0:00:09]} Kc6 {[%emt 0:00:05]} 80. Kb4 {[%emt 0:00:02]} Kc7 {[%emt 0:00:05]} 81. Kb5 {[%emt 0:00:05]} Kb7 {[%emt 0:00:04]} 82. c6+ {[%emt 0:00:05]} Kc7 {[%emt 0:00:06]} 83. Kc5 {[%emt 0:00:05]} Kc8 {[%emt 0:00:08]} 84. Kd5 {[%emt 0:00:09]} Kc7 {[%emt 0:00:04]} 85. Kc5 {[%emt 0:00:06]} Kc8 {[%emt 0:00:05]} 86. Kb4 {[%emt 0:00:04]} Kc7 {[%emt 0:00:04]} 87. Kb5 {[%emt 0:00:05]} Kc8 {[%emt 0:00:06]} 88. Kb6 {[%emt 0:00:05]} Kb8 {[%emt 0:00:04]} 89. c7+ {[%emt 0:00:05]} Kc8 {[%emt 0:00:03]} 90. Kc6 {[%emt 0:00:03]} 1/2-1/2

[Event "EYCC Open U14 2021"]
[Site "Tornelo"]
[Date "2021.10.15"]
[Round "9.6"]
[White "Krawczyk, Flawian"]
[Black "Tarhan, Adar"]
[Result "1-0"]
[ECO "D06"]
[WhiteElo "2070"]
[BlackElo "2208"]
[Annotator "ChessBase"]
[PlyCount "127"]
[EventDate "2021.10.15"]
[EventType "swiss"]
[EventCountry "NET"]
[SourceTitle "playchess.com"]
[Source "ChessBase"]
[SourceQuality "1"]
[TimeControl "5400+30"]

1. d4 {[%emt 0:00:30]} d5 {[%emt 0:00:33]} 2. Nf3 {[%emt 0:00:37]} Bf5 {[%emt 0:00:56]} 3. c4 {[%emt 0:00:49]} e6 {[%emt 0:01:09]} 4. Nc3 {[%emt 0:00:08]} Nf6 {[%emt 0:00:15]} 5. Bg5 {[%emt 0:01:20]} Be7 {[%emt 0:00:32]} 6. Bxf6 {[%emt 0:03:00]} Bxf6 {[%emt 0:01:03]} 7. cxd5 {[%emt 0:01:42]} exd5 {[%emt 0:01:07]} 8. Qb3 {[%emt 0:01:13]} Nc6 {[%emt 0:05:08]} 9. Qxd5 {[%emt 0:07:20]} Nxd4 {[%emt 0:01:09]} 10. Nxd4 {[%emt 0:00:19]} Qxd5 {[%emt 0:00:07]} 11. Nxd5 {[%emt 0:00:22]} Bxd4 {[%emt 0:00:22]} 12. Nxc7+ {[%emt 0:14:15]} Ke7 {[%emt 0:04:02]} 13. Nd5+ {[%emt 0:05:27]} Ke6 {[%emt 0:01:17]} 14. Nc3 {[%emt 0:00:24]} Rhc8 {[%emt 0:05:35]} 15. Rc1 {[%emt 0:00:32]} b5 {[%emt 0:01:26]} 16. e3 {[%emt 0:01:24]} Bxc3+ {[%emt 0:02:45]} 17. Rxc3 {[%emt 0:02:35]} b4 {[%emt 0:00:30]} 18. Rc4 {[%emt 0:01:25]} Ke7 {[%emt 0:07:38]} 19. Kd2 {[%emt 0:06:20]} a5 {[%emt 0:03:31]} 20. Bd3 {[%emt 0:09:07]} Be6 {[%emt 0:03:22]} 21. Rxc8 {[%emt 0:00:20]} Rxc8 {[%emt 0:00:07]} 22. a3 {[%emt 0:01:33]} bxa3 {[%emt 0:05:32]} 23. bxa3 {[%emt 0:00:46]} Rd8 {[%emt 0:00:15]} 24. Rc1 {[%emt 0:00:43]} Rb8 {[%emt 0:00:46]} 25. Rb1 {[%emt 0:06:53]} Rd8 {[%emt 0:00:37]} 26. Rb7+ {[%emt 0:08:23]} Kf6 {[%emt 0:01:06]} 27. Rb6 {[%emt 0:01:06]} Ke7 {[%emt 0:00:59]} 28. Rb7+ {[%emt 0:02:05]} Kf8 {[%emt 0:03:22]} 29. Ke2 {[%emt 0:01:25]} a4 {[%emt 0:06:35]} 30. Rb4 {[%emt 0:00:38]} Bb3 {[%emt 0:00:43]} 31. e4 {[%emt 0:02:05]} g6 {[%emt 0:01:10]} 32. f4 {[%emt 0:02:00]} Rc8 {[%emt 0:01:01]} 33. Kd2 {[%emt 0:00:14]} Kg7 {[%emt 0:00:27]} 34. g4 {[%emt 0:00:24]} Rc5 {[%emt 0:01:35]} 35. h4 {[%emt 0:03:33]} Rc8 {[%emt 0:00:44]} 36. g5 {[%emt 0:02:16]} Rc7 {[%emt 0:02:12]} 37. f5 {[%emt 0:01:17]} h6 {[%emt 0:00:55]} 38. Rb6 {[%emt 0:02:53]} hxg5 {[%emt 0:02:20]} 39. hxg5 {[%emt 0:00:12]} Rc5 {[%emt 0:00:55]} 40. Rb5 {[%emt 0:01:59]} Rc7 {[%emt 0:00:29]} 41. Rb6 {[%emt 0:04:23]} Rc5 {[%emt 0:00:57]} 42. Ra6 {[%emt 0:00:26]} Re5 {[%emt 0:03:33]} 43. Kc3 {[%emt 0:01:50]} Rc5+ {[%emt 0:00:07]} 44. Kd4 {[%emt 0:00:18]} Rc1 {[%emt 0:00:19]} 45. fxg6 {[%emt 0:00:07]} fxg6 {[%emt 0:00:41]} 46. e5 {[%emt 0:04:14]} Ra1 {[%emt 0:00:13]} 47. e6 {[%emt 0:00:12]} Rxa3 {[%emt 0:00:51]} 48. e7 {[%emt 0:01:43]} Bf7 {[%emt 0:00:37]} 49. Rxg6+ {[%emt 0:00:29]} Kh8 {[%emt 0:00:27]} 50. Rf6 {[%emt 0:00:17]} Kg7 {[%emt 0:00:11]} 51. Rg6+ {[%emt 0:00:41]} Kh8 {[%emt 0:00:07]} 52. Rh6+ {[%emt 0:00:03]} Kg7 {[%emt 0:00:05]} 53. Rh7+ {[%emt 0:00:08]} Kg8 {[%emt 0:00:07]} 54. Bc4 {[%emt 0:00:29]} Kxh7 {[%emt 0:00:27]} 55. Bxf7 {[%emt 0:00:13]} Rg3 {[%emt 0:00:07]} 56. g6+ {[%emt 0:00:20]} Kg7 {[%emt 0:00:12]} 57. e8=Q {[%emt 0:00:06]} Rg4+ {[%emt 0:00:18]} 58. Ke3 {[%emt 0:00:12]} a3 {[%emt 0:00:09]} 59. Qe5+ {[%emt 0:00:21]} Kf8 {[%emt 0:00:24]} 60. g7+ {[%emt 0:00:06]} Kxf7 {[%emt 0:00:05]} 61. Qf5+ {[%emt 0:00:05]} Kg8 {[%emt 0:00:06]} 62. Qxg4 {[%emt 0:00:06]} a2 {[%emt 0:00:13]} 63. Qe6+ {[%emt 0:00:04]} Kh7 {[%emt 0:00:07]} 64. g8=Q# {[%emt 0:00:08]} 1-0

[Event "EYCC Open U14 2021"]
[Site "Tornelo"]
[Date "2021.10.15"]
[Round "9.7"]
[White "Lavrencic, Matic"]
[Black "Kanov, Nikola"]
[Result "0-1"]
[ECO "C60"]
[WhiteElo "2149"]
[BlackElo "2150"]
[Annotator "ChessBase"]
[PlyCount "110"]
[EventDate "2021.10.15"]
[EventType "swiss"]
[EventCountry "NET"]
[SourceTitle "playchess.com"]
[Source "ChessBase"]
[SourceQuality "1"]
[TimeControl "5400+30"]

1. e4 {[%emt 0:00:30]} e5 {[%emt 0:00:40]} 2. Nf3 {[%emt 0:00:07]} Nc6 {[%emt 0:00:09]} 3. Bb5 {[%emt 0:00:07]} g6 {[%emt 0:00:16]} 4. c3 {[%emt 0:00:08]} Bg7 {[%emt 0:00:48]} 5. d4 {[%emt 0:00:18]} exd4 {[%emt 0:00:34]} 6. cxd4 {[%emt 0:00:23]} a6 {[%emt 0:00:26]} 7. Ba4 {[%emt 0:00:06]} b5 {[%emt 0:00:32]} 8. Bc2 {[%emt 0:00:07]} Nge7 {[%emt 0:00:33]} 9. d5 {[%emt 0:04:48]} Na5 {[%emt 0:01:13]} 10. Bd2 {[%emt 0:01:41]} c5 {[%emt 0:04:53]} 11. Bc3 {[%emt 0:00:12]} Bxc3+ {[%emt 0:01:51]} 12. Nxc3 {[%emt 0:00:15]} d6 {[%emt 0:00:57]} 13. h3 {[%emt 0:01:49]} O-O {[%emt 0:03:13]} 14. O-O {[%emt 0:00:12]} Nc4 {[%emt 0:02:47]} 15. Qc1 {[%emt 0:00:22]} f6 {[%emt 0:04:21]} 16. Nd2 {[%emt 0:15:54]} Nb6 {[%emt 0:06:48]} 17. a4 {[%emt 0:08:13]} b4 {[%emt 0:01:45]} 18. Nd1 {[%emt 0:00:15]} a5 {[%emt 0:00:47]} 19. Bd3 {[%emt 0:04:28]} g5 {[%emt 0:05:38]} 20. Ne3 {[%emt 0:02:49]} Ng6 {[%emt 0:00:52]} 21. Ndc4 {[%emt 0:02:51]} Nxc4 {[%emt 0:05:07]} 22. Nxc4 {[%emt 0:01:21]} Ra7 {[%emt 0:03:46]} 23. Qd2 {[%emt 0:03:31]} Rg7 {[%emt 0:13:28]} 24. Rfe1 {[%emt 0:02:37]} h5 {[%emt 0:04:53]} 25. Bf1 {[%emt 0:00:39]} Ne5 {[%emt 0:02:50]} 26. Re3 {[%emt 0:07:52]} Ng6 {[%emt 0:15:25]} 27. b3 {[%emt 0:03:40]} Kf7 {[%emt 0:04:56]} 28. Be2 {[%emt 0:01:42]} Rh8 {[%emt 0:01:04]} 29. Qd1 {[%emt 0:01:40]} g4 {[%emt 0:04:52]} 30. g3 {[%emt 0:02:30]} Ba6 {[%emt 0:04:16]} 31. h4 {[%emt 0:02:38]} Bxc4 {[%emt 0:00:34]} 32. Bxc4 {[%emt 0:00:09]} Ne5 {[%emt 0:00:16]} 33. Be2 {[%emt 0:00:54]} Rf8 {[%emt 0:00:21]} 34. Kh2 {[%emt 0:01:20]} Kg8 {[%emt 0:01:23]} 35. Qc2 {[%emt 0:02:31]} f5 {[%emt 0:01:50]} 36. exf5 {[%emt 0:00:08]} Qf6 {[%emt 0:00:12]} 37. Rf1 {[%emt 0:07:27]} Qxf5 {[%emt 0:00:24]} 38. Qxf5 {[%emt 0:00:13]} Rxf5 {[%emt 0:00:03]} 39. Kg2 {[%emt 0:00:50]} Rgf7 {[%emt 0:00:07]} 40. Ba6 {[%emt 0:00:34]} Rf3 {[%emt 0:00:49]} 41. Rxe5 {[%emt 0:02:34]} dxe5 {[%emt 0:00:17]} 42. d6 {[%emt 0:04:13]} Rd7 {[%emt 0:01:13]} 43. Rd1 {[%emt 0:00:28]} Rf6 {[%emt 0:00:17]} 44. Bc4+ {[%emt 0:00:06]} Kf8 {[%emt 0:00:26]} 45. Rd5 {[%emt 0:00:06]} Rdxd6 {[%emt 0:00:14]} 46. Rxc5 {[%emt 0:01:09]} Rd2 {[%emt 0:00:10]} 47. Rxa5 {[%emt 0:01:32]} Rfxf2+ {[%emt 0:00:06]} 48. Kg1 {[%emt 0:00:06]} Rg2+ {[%emt 0:00:19]} 49. Kf1 {[%emt 0:00:10]} Rdf2+ {[%emt 0:00:06]} 50. Ke1 {[%emt 0:00:08]} e4 {[%emt 0:03:09]} 51. Re5 {[%emt 0:01:37]} Rb2 {[%emt 0:00:08]} 52. Kf1 {[%emt 0:00:11]} Rxg3 {[%emt 0:02:54]} 53. Rxe4 {[%emt 0:00:09]} Rh3 {[%emt 0:00:46]} 54. Rf4+ {[%emt 0:00:26]} Kg7 {[%emt 0:00:23]} 55. Bd5 {[%emt 0:00:19]} Rd3 {[%emt 0:00:44]} 0-1

[Event "EYCC Open U14 2021"]
[Site "Tornelo"]
[Date "2021.10.15"]
[Round "9.8"]
[White "Klimkowski, Jan"]
[Black "Makridis, Dimitrios"]
[Result "1-0"]
[ECO "B33"]
[WhiteElo "2366"]
[BlackElo "2138"]
[Annotator "ChessBase"]
[PlyCount "95"]
[EventDate "2021.10.15"]
[EventType "swiss"]
[EventCountry "NET"]
[SourceTitle "playchess.com"]
[Source "ChessBase"]
[SourceQuality "1"]
[TimeControl "5400+30"]

1. e4 {[%emt 0:00:30]} c5 {[%emt 0:00:35]} 2. Nf3 {[%emt 0:00:06]} Nc6 {[%emt 0:00:03]} 3. d4 {[%emt 0:00:07]} cxd4 {[%emt 0:00:02]} 4. Nxd4 {[%emt 0:00:10]} Nf6 {[%emt 0:00:03]} 5. Nc3 {[%emt 0:00:07]} e5 {[%emt 0:00:09]} 6. Ndb5 {[%emt 0:00:12]} d6 {[%emt 0:00:04]} 7. Bg5 {[%emt 0:00:16]} a6 {[%emt 0:00:12]} 8. Na3 {[%emt 0:00:07]} b5 {[%emt 0:00:27]} 9. Bxf6 {[%emt 0:00:15]} gxf6 {[%emt 0:00:10]} 10. Nd5 {[%emt 0:00:09]} f5 {[%emt 0:01:02]} 11. g3 {[%emt 0:00:10]} Bg7 {[%emt 0:10:22]} 12. Bg2 {[%emt 0:00:10]} f4 {[%emt 0:01:39]} 13. O-O {[%emt 0:02:05]} fxg3 {[%emt 0:02:45]} 14. fxg3 {[%emt 0:04:49]} h5 {[%emt 0:01:20]} 15. Qf3 {[%emt 0:02:13]} Be6 {[%emt 0:00:54]} 16. c3 {[%emt 0:01:26]} Ra7 {[%emt 0:04:28]} 17. Nc2 {[%emt 0:01:15]} h4 {[%emt 0:02:21]} 18. Nce3 {[%emt 0:02:00]} Ne7 {[%emt 0:06:05]} 19. a4 {[%emt 0:05:19]} h3 {[%emt 0:08:23]} 20. Bh1 {[%emt 0:00:10]} Bxd5 {[%emt 0:02:01]} 21. exd5 {[%emt 0:02:18]} O-O {[%emt 0:07:08]} 22. Nf5 {[%emt 0:08:45]} Qb6+ {[%emt 0:02:34]} 23. Rf2 {[%emt 0:00:07]} e4 {[%emt 0:02:53]} 24. Qxe4 {[%emt 0:00:56]} Nxf5 {[%emt 0:00:38]} 25. Qxf5 {[%emt 0:00:07]} b4 {[%emt 0:01:57]} 26. Raf1 {[%emt 0:06:20]} Re8 {[%emt 0:01:34]} 27. Bf3 {[%emt 0:01:46]} Rc7 {[%emt 0:04:20]} 28. Qxh3 {[%emt 0:02:10]} bxc3 {[%emt 0:01:23]} 29. bxc3 {[%emt 0:00:08]} Bxc3 {[%emt 0:06:15]} 30. Kh1 {[%emt 0:03:02]} Bg7 {[%emt 0:04:54]} 31. Bh5 {[%emt 0:02:19]} Ree7 {[%emt 0:00:29]} 32. Qf5 {[%emt 0:02:12]} Qa5 {[%emt 0:02:10]} 33. Rb1 {[%emt 0:06:53]} Re1+ {[%emt 0:04:34]} 34. Kg2 {[%emt 0:00:29]} Rxb1 {[%emt 0:01:31]} 35. Bxf7+ {[%emt 0:00:09]} Rxf7 {[%emt 0:00:18]} 36. Qxf7+ {[%emt 0:00:09]} Kh8 {[%emt 0:00:54]} 37. Qe8+ {[%emt 0:00:08]} Kh7 {[%emt 0:00:04]} 38. Qe4+ {[%emt 0:00:07]} Kh8 {[%emt 0:00:03]} 39. Qxb1 {[%emt 0:00:08]} Qxd5+ {[%emt 0:00:02]} 40. Rf3 {[%emt 0:00:53]} Qd2+ {[%emt 0:00:13]} 41. Kh1 {[%emt 0:00:12]} d5 {[%emt 0:00:59]} 42. Qd3 {[%emt 0:00:39]} Qe1+ {[%emt 0:00:10]} 43. Rf1 {[%emt 0:00:10]} Qe5 {[%emt 0:00:06]} 44. Qf5 {[%emt 0:00:17]} Qe2 {[%emt 0:00:16]} 45. Rc1 {[%emt 0:00:26]} Bc3 {[%emt 0:01:10]} 46. Qc8+ {[%emt 0:00:09]} Kh7 {[%emt 0:00:02]} 47. Qxc3 {[%emt 0:00:11]} Qe4+ {[%emt 0:00:01]} 48. Kg1 {[%emt 0:00:08]} 1-0

[Event "EYCC Open U14 2021"]
[Site "Tornelo"]
[Date "2021.10.15"]
[Round "9.9"]
[White "Ince, Taylan Ruzgar"]
[Black "Valiyev, Shahin"]
[Result "1-0"]
[ECO "E08"]
[WhiteElo "2124"]
[BlackElo "1944"]
[Annotator "NA"]
[PlyCount "91"]
[EventDate "2021.10.15"]
[EventType "swiss"]
[EventCountry "NET"]
[SourceTitle "playchess.com"]
[Source "ChessBase"]
[SourceQuality "1"]
[TimeControl "5400+30"]

1. d4 {[%emt 0:00:30]} d5 {[%emt 0:00:32]} 2. c4 {[%emt 0:00:04]} e6 {[%emt 0:00:03]} 3. Nf3 {[%emt 0:00:06]} Nf6 {[%emt 0:00:19]} 4. g3 {[%emt 0:00:04]} Bb4+ {[%emt 0:00:02]} 5. Bd2 {[%emt 0:00:06]} Be7 {[%emt 0:00:03]} 6. Bg2 {[%emt 0:00:05]} O-O {[%emt 0:00:19]} 7. Qc2 {[%emt 0:00:08]} c6 {[%emt 0:00:49]} 8. O-O {[%emt 0:01:51]} Nbd7 {[%emt 0:00:50]} 9. Rd1 {[%emt 0:00:16]} b6 {[%emt 0:01:17]} 10. Bf4 {[%emt 0:06:04]} Bb7 {[%emt 0:00:11]} 11. b3 {[%emt 0:03:48]} Qc8 {[%emt 0:04:00]} 12. Nc3 {[%emt 0:06:28]} c5 {[%emt 0:03:33]} 13. cxd5 {[%emt 0:04:42]} cxd4 {[%emt 0:03:09]} 14. dxe6 {[%emt 0:13:30]} fxe6 {[%emt 0:00:05]} 15. Rxd4 {[%emt 0:01:34]} Bc5 {[%emt 0:10:09]} 16. Rd2 {[%emt 0:14:10]} Ng4 {[%emt 0:14:45]} 17. Nd1 {[%emt 0:08:35]} e5 {[%emt 0:15:20]} 18. Qc4+ {[%emt 0:04:03]} Kh8 {[%emt 0:00:27]} 19. Qe6 {[%emt 0:00:38]} Ndf6 {[%emt 0:10:00]} 20. Qxc8 {[%emt 0:00:30]} Raxc8 {[%emt 0:00:03]} 21. Nxe5 {[%emt 0:01:11]} Bxg2 {[%emt 0:03:11]} 22. Kxg2 {[%emt 0:00:07]} Nxe5 {[%emt 0:03:54]} 23. Bxe5 {[%emt 0:00:08]} Ng4 {[%emt 0:00:02]} 24. Bd4 {[%emt 0:00:46]} Bb4 {[%emt 0:00:09]} 25. Rd3 {[%emt 0:02:00]} Rc2 {[%emt 0:00:07]} 26. h3 {[%emt 0:01:39]} Nh6 {[%emt 0:00:21]} 27. e4 {[%emt 0:04:11]} Kg8 {[%emt 0:00:40]} 28. a3 {[%emt 0:02:28]} Be1 {[%emt 0:00:17]} 29. Be3 {[%emt 0:03:12]} Nf7 {[%emt 0:00:21]} 30. Rd5 {[%emt 0:02:48]} Re8 {[%emt 0:00:19]} 31. Kf1 {[%emt 0:04:16]} Bc3 {[%emt 0:00:04]} 32. Rc1 {[%emt 0:00:34]} Rxc1 {[%emt 0:00:02]} 33. Bxc1 {[%emt 0:00:02]} Bf6 {[%emt 0:00:21]} 34. f3 {[%emt 0:00:06]} Rc8 {[%emt 0:00:22]} 35. Bf4 {[%emt 0:00:38]} Rc2 {[%emt 0:00:42]} 36. Rd2 {[%emt 0:00:07]} Rc6 {[%emt 0:00:10]} 37. Ke2 {[%emt 0:00:37]} Nd8 {[%emt 0:00:30]} 38. Be3 {[%emt 0:01:04]} Nb7 {[%emt 0:00:10]} 39. f4 {[%emt 0:00:38]} Na5 {[%emt 0:00:10]} 40. b4 {[%emt 0:02:30]} Nb3 {[%emt 0:00:18]} 41. Rd3 {[%emt 0:01:33]} Rc2+ {[%emt 0:00:09]} 42. Kf3 {[%emt 0:00:16]} Na1 {[%emt 0:00:02]} 43. e5 {[%emt 0:00:15]} Be7 {[%emt 0:00:03]} 44. Bd4 {[%emt 0:00:34]} Ra2 {[%emt 0:00:31]} 45. Bxa1 {[%emt 0:01:32]} Rxa1 {[%emt 0:00:04]} 46. Ne3 {[%emt 0:00:08]} 1-0